bitfinex/quotes_SOLUSD_20250125
["timestamp","ask_amount","ask_price","bid_price","bid_amount"]
[1737768312756,23.776884,251.65,251.63,0.063]
[1737768312934,1.7947,251.64,251.63,0.063]
[1737768313135,1.7947,251.64,251.49,0.063]
[1737768313345,23.776884,251.63,251.49,0.063]
[1737768314246,0.7948,251.62,251.49,0.063]
[1737768314861,24.776884,251.61,251.49,0.063]
[1737768315240,31.229184,251.61,251.49,0.063]
[1737768315756,1.0,251.6,251.49,0.063]
[1737768316144,24.571784,251.59,251.49,0.063]
[1737768319164,23.776884,251.57,251.49,0.063]
[1737768320471,23.776884,251.57,251.42,3.5403]
[1737768320773,0.795,251.56,251.42,3.5403]
[1737768321074,23.776884,251.55,251.42,3.5403]
[1737768321639,0.795,251.57,251.42,3.5403]
[1737768321841,7.4523,251.61,251.42,3.93791838]
[1737768322172,23.776884,251.6,251.42,3.5403]
[1737768322372,23.776884,251.6,251.44,20.0]
[1737768322973,0.7949,251.59,251.45,3.9769]
[1737768323143,0.7949,251.59,251.43,3.9771]
[1737768323144,1.7949,251.59,251.43,3.9771]
[1737768323648,0.7949,251.59,251.43,3.9771]
[1737768324777,0.7949,251.59,251.43,4.0401]
[1737768326255,0.795,251.57,251.43,4.0401]
[1737768326953,0.08444435,251.44,251.43,4.0401]
[1737768328900,0.01552394,251.44,251.43,4.0401]
[1737768329099,0.01552394,251.44,251.43,0.063]
[1737768337192,0.01552394,251.44,251.43,0.46064035]
[1737768337366,5.009e-05,251.46,251.45,20.0]
[1737768337570,5.009e-05,251.46,251.45,0.39751568]
[1737768338868,5.009e-05,251.46,251.45,20.39751568]
[1737768339569,0.01660484,251.47,251.46,3.9767]
[1737768340395,23.776884,251.64,251.56,1.0]
[1737768340572,23.88,251.74,251.56,1.0]
[1737768340573,23.776884,251.67,251.56,1.0]
[1737768341998,23.776884,251.67,251.53,1.0]
[1737768342174,0.7947,251.66,251.56,1.0]
[1737768342881,0.7947,251.66,251.59,1.0]
[1737768343806,23.776884,251.7,251.59,1.0]
[1737768343979,24.571384,251.7,251.59,1.0]
[1737768344391,24.571384,251.7,251.61,1.0]
[1737768345396,26.557784,251.7,251.61,1.0]
[1737768345595,26.557784,251.7,251.56,1.0]
[1737768346198,26.557784,251.7,251.58,1.0]
[1737768346967,0.07710668,251.59,251.56,5.9751]
[1737768347195,0.07710668,251.59,251.58,2.0]
[1737768356797,0.07710668,251.59,251.58,1.0]
[1737768358212,0.07710668,251.59,251.56,1.0]
[1737768358909,0.07710668,251.59,251.58,1.0]
[1737768359213,0.07710668,251.59,251.58,2.39745519]
[1737768359607,0.07710668,251.59,251.58,2.0]
[1737768359995,0.07710668,251.59,251.58,1.0]
[1737768360195,0.07710668,251.59,251.56,1.0]
[1737768360513,0.07710668,251.59,251.57,1.0]
[1737768360878,0.07710668,251.59,251.58,0.063]
[1737768361143,0.07710668,251.59,251.58,1.063]
[1737768361278,0.07710668,251.59,251.58,2.46034836]
[1737768361685,0.07710668,251.59,251.58,1.063]
[1737768362916,0.07710668,251.59,251.58,2.46040702]
[1737768366028,4.474e-05,251.6,251.59,25.6229]
[1737768366201,4.474e-05,251.6,251.59,31.71]
[1737768367024,0.0853455,251.62,251.61,2.0]
[1737768367716,0.0853455,251.62,251.61,1.0]
[1737768368241,4.55e-05,251.62,251.61,47.82247292]
[1737768368401,0.07659177,251.66,251.61,47.82247292]
[1737768368402,5.022e-05,251.67,251.66,2.0]
[1737768368600,2.898e-05,251.7,251.69,6.0871]
[1737768368802,2.898e-05,251.7,251.69,9.56419539]
[1737768369027,2.898e-05,251.7,251.69,13.53729539]
[1737768369599,1.5329,251.86,251.72,20.0]
[1737768369815,0.03,251.86,251.78,2.0]
[1737768370208,0.03,251.86,251.78,1.0]
[1737768370726,0.03,251.86,251.78,2.0]
[1737768371616,0.03,251.86,251.78,5.9717]
[1737768374721,0.03,251.86,251.78,35.906184]
[1737768375645,0.03,251.86,251.85,2.0]
[1737768375841,0.03,251.93,251.92,45.776884]
[1737768376156,0.03,252.05,251.92,45.776884]
[1737768376157,0.03,252.05,252.04,2.0]
[1737768376928,0.03,252.05,252.04,1.0]
[1737768377121,0.03,252.05,252.04,2.0]
[1737768377312,0.03,252.05,252.02,1.0]
[1737768377517,0.03,252.05,252.01,3.06]
[1737768378332,0.03,252.05,251.96,1.0]
[1737768379949,0.03,252.05,251.94,1.0]
[1737768381249,0.03,252.05,251.95,1.0]
[1737768381423,0.03,252.05,251.96,1.0]
[1737768381843,0.03,252.05,251.95,2.0]
[1737768382647,0.03,252.05,251.96,1.0]
[1737768384021,0.03,252.05,251.93,1.0]
[1737768385440,0.7935,252.04,251.93,1.0]
[1737768386829,0.7935,252.04,251.93,1.063]
[1737768387026,0.07739794,251.94,251.93,1.063]
[1737768387433,0.07739794,251.94,251.93,0.063]
[1737768390445,0.07739794,251.94,251.93,6.0323]
[1737768390945,0.07739794,251.94,251.93,37.691884]
[1737768391130,0.00508182,251.98,251.96,22.0]
[1737768391329,30.0,252.33,251.98,2.0]
[1737768391638,23.88,252.27,251.98,2.0]
[1737768391835,0.7932,252.13,251.98,5.9685]
[1737768392843,1.97972952,252.23,251.97,0.39669659]
[1737768392844,1.983,252.14,251.97,0.39669659]
[1737768393046,0.8234,252.05,251.96,1.0]
[1737768394848,0.03,252.05,251.96,1.0]
[1737768395044,0.7935,252.04,251.96,1.0]
[1737768396966,0.87868214,252.03,251.96,1.0]
[1737768397258,0.08518214,252.03,251.96,1.0]
[1737768397561,0.08518214,252.03,251.94,2.0]
[1737768398453,1.59348214,252.03,251.94,2.0]
[1737768398679,2.38698214,252.03,251.94,1.0]
[1737768399154,0.08518214,252.03,251.94,2.0]
[1737768399454,0.08518214,252.03,251.98,2.0]
[1737768400743,0.08518214,252.03,251.96,2.0]
[1737768400928,0.08518214,252.03,251.98,1.0]
[1737768401331,0.08518214,252.03,251.98,2.0]
[1737768402460,0.08518214,252.03,251.97,0.39679097]
[1737768402662,0.08518214,252.03,251.96,1.0]
[1737768403469,0.03,252.05,252.04,1.0]
[1737768403759,0.7929,252.23,252.14,1.0]
[1737768403930,0.8228,252.25,252.14,1.0]
[1737768404131,0.03,252.25,252.14,2.0]
[1737768404758,0.7929,252.23,252.14,1.0]
[1737768405357,0.7929,252.23,252.13,1.0]
[1737768405665,0.7929,252.21,252.13,1.0]
[1737768405962,0.793,252.19,252.1,1.0]
[1737768406176,0.03,252.25,252.12,1.0]
[1737768406340,0.793,252.21,252.12,2.0]
[1737768406968,0.08374581,252.13,252.12,2.0]
[1737768408252,0.08374581,252.13,252.12,1.0]
[1737768408444,0.08374581,252.13,252.12,1.39648403]
[1737768410567,0.08374581,252.13,252.12,7.93538403]
[1737768412670,1.033e-05,252.15,252.14,22.0]
[1737768412859,1.033e-05,252.15,252.14,2.39636252]
[1737768413568,1.033e-05,252.15,252.14,26.17324652]
[1737768413767,0.07744978,252.17,252.16,2.0]
[1737768414068,0.07744978,252.17,252.16,2.39634187]
[1737768417871,0.07744978,252.17,252.16,2.0]
[1737768418174,0.07744978,252.17,252.16,2.39649966]
[1737768419877,0.07744978,252.17,252.14,1.0]
[1737768420748,0.07744978,252.17,252.15,1.0]
[1737768421362,0.07744978,252.17,252.16,1.0]
[1737768421675,0.07744978,252.17,252.16,1.39646795]
[1737768422471,0.07744978,252.17,252.16,1.0]
[1737768423151,0.07744978,252.17,252.14,1.0]
[1737768423463,0.07744978,252.17,252.16,1.0]
[1737768423665,0.07744978,252.17,252.16,2.0]
[1737768423975,0.07744978,252.17,252.15,1.0]
[1737768424975,0.07744978,252.17,252.14,1.0]
[1737768425176,0.07744978,252.17,252.16,1.0]
[1737768425689,0.07744978,252.17,252.14,1.0]
[1737768426177,0.07744978,252.17,252.15,1.0]
[1737768426969,0.0716585,252.16,252.15,1.0]
[1737768427885,0.0716585,252.16,252.14,1.0]
[1737768429562,0.8647585,252.16,252.07,2.0]
[1737768429888,23.776884,252.15,252.05,1.0]
[1737768430063,0.8647585,252.16,252.07,1.0]
[1737768430578,0.8647585,252.16,252.05,1.0]
[1737768430771,23.776884,252.15,252.05,1.0]
[1737768431561,0.7932,252.14,252.05,1.0]
[1737768432261,0.8647585,252.16,252.09,1.0]
[1737768432971,0.8647585,252.16,252.08,1.0]
[1737768433661,0.8647585,252.16,252.07,2.0]
[1737768434289,0.8647585,252.16,252.08,0.063]
[1737768435482,0.8647585,252.16,252.09,1.0]
[1737768435688,0.8647585,252.16,252.09,2.0]
[1737768435986,0.0716585,252.16,252.13,1.0]
[1737768436579,0.0716585,252.16,252.14,1.0]
[1737768437894,0.0716585,252.16,252.13,1.0]
[1737768439569,0.0716585,252.16,252.1,1.0]
[1737768439767,0.0716585,252.16,252.08,0.063]
[1737768439768,0.8647585,252.16,252.08,1.063]
[1737768439984,0.8647585,252.16,252.08,0.063]
[1737768440188,0.0716585,252.16,252.08,2.063]
[1737768440395,0.0716585,252.16,252.1,1.0]
[1737768440700,0.0716585,252.16,252.11,1.0]
[1737768440897,0.0716585,252.16,252.09,1.0]
[1737768441074,0.8647585,252.16,252.09,1.0]
[1737768441275,0.8647585,252.16,252.08,1.063]
[1737768443101,0.8647585,252.16,252.08,0.063]
[1737768443500,0.8647585,252.16,252.08,1.063]
[1737768443695,23.776884,252.15,252.08,0.063]
[1737768444106,0.7932,252.14,252.08,0.063]
[1737768446894,0.07927803,252.09,252.08,0.063]
[1737768447493,0.07927803,252.09,252.03,0.663]
[1737768447699,0.87257803,252.09,252.01,1.0]
[1737768447896,23.776884,252.08,251.97,0.663]
[1737768448207,23.776884,252.08,251.95,0.663]
[1737768449879,23.776884,252.08,251.94,4.9691]
[1737768449880,0.7934,252.07,251.94,1.0]
[1737768450188,0.7934,252.07,251.95,0.663]
[1737768450596,0.7934,252.07,251.97,0.663]
[1737768451007,0.87257803,252.09,252.01,0.663]
[1737768451703,0.87257803,252.09,252.02,1.0]
[1737768452384,0.07927803,252.09,252.03,0.663]
[1737768452906,0.07927803,252.09,252.05,1.0]
[1737768453120,7.803e-05,252.09,252.08,21.663]
[1737768453282,0.00197146,252.1,252.09,20.0]
[1737768453994,0.00197146,252.1,252.09,23.9668]
[1737768455619,0.06500652,252.13,252.12,1.663]
[1737768455786,0.06500652,252.13,252.12,2.05946831]
[1737768457590,0.06500652,252.13,252.12,6.02576831]
[1737768461386,0.09500652,252.13,252.12,6.02576831]
[1737768461706,6.52e-06,252.13,252.12,6.02576831]
[1737768464419,6.52e-06,252.13,252.12,1.663]
[1737768464586,6.52e-06,252.13,252.12,0.663]
[1737768465308,6.52e-06,252.13,252.1,0.663]
[1737768465512,6.52e-06,252.13,252.06,0.663]
[1737768465686,23.77689052,252.13,252.04,0.663]
[1737768466109,25.31309052,252.13,252.02,0.663]
[1737768467014,0.07828449,252.03,252.02,0.663]
[1737768469815,0.07828449,252.03,252.02,1.0597449]
[1737768473112,8.449e-05,252.03,252.02,1.0597449]
[1737768473421,5.478e-05,252.05,252.04,21.0]
[1737768473587,2.8e-07,252.06,252.05,20.0]
[1737768473916,2.8e-07,252.06,252.05,32.1992]
[1737768475218,2.8e-07,252.06,252.05,3.9674]
[1737768479521,2.8e-07,252.06,252.04,1.663]
[1737768480725,2.8e-07,252.06,252.04,2.05967675]
[1737768480900,2.8e-07,252.06,252.04,1.663]
[1737768481107,2.8e-07,252.06,252.05,0.3966968]
[1737768482436,0.78154993,252.15,252.08,0.663]
[1737768482925,1.81171411,252.23,252.1,0.663]
[1737768482926,0.8231,252.17,252.1,0.663]
[1737768483429,0.8231,252.16,252.1,0.663]
[1737768483754,0.03,252.16,252.11,1.0]
[1737768486220,0.03,252.16,252.14,1.0]
[1737768486902,0.07325602,252.15,252.14,1.0]
[1737768487114,23.776884,252.25,252.14,1.0]
[1737768487517,0.337,252.33,252.18,0.663]
[1737768487733,0.337,252.35,252.19,1.0]
[1737768488032,23.113884,252.35,252.19,2.0]
[1737768488337,3.9659,252.35,252.19,2.0]
[1737768488505,3.9659,252.35,252.19,1.0]
[1737768488704,2.7739,252.34,252.19,2.0]
[1737768489633,2.7739,252.34,252.17,1.0]
[1737768489931,23.776884,252.33,252.16,1.0]
[1737768490120,23.776884,252.31,252.14,1.0]
[1737768490934,23.776884,252.29,252.14,1.0]
[1737768491821,23.776884,252.29,252.15,1.0]
[1737768492137,0.7927,252.28,252.21,1.0]
[1737768492712,1.3663,252.38,252.26,1.0]
[1737768492713,0.7924,252.37,252.26,1.0]
[1737768493326,23.776884,252.36,252.26,1.0]
[1737768493530,0.7924,252.37,252.26,1.0]
[1737768494541,0.7924,252.37,252.27,1.0]
[1737768494720,0.7924,252.37,252.3,1.0]
[1737768494926,0.7924,252.37,252.32,1.0]
[1737768495127,4.9629,252.44,252.32,1.0]
[1737768495311,0.7923,252.41,252.32,1.0]
[1737768495740,0.7923,252.41,252.29,1.0]
[1737768495741,0.7922,252.45,252.39,1.0]
[1737768496037,0.792,252.52,252.38,1.0]
[1737768496264,0.792,252.52,252.41,1.0]
[1737768496416,0.792,252.52,252.39,1.0]
[1737768497118,2.772,252.52,252.37,2.0]
[1737768497430,23.776884,252.51,252.35,1.0]
[1737768497638,23.776884,252.51,252.33,8.7857]
[1737768497820,23.776884,252.51,252.33,7.1376]
[1737768498225,23.776884,252.49,252.33,7.1376]
[1737768499248,23.776884,252.49,252.33,1.0]
[1737768499746,23.776884,252.44,252.33,1.0]
[1737768499948,23.776884,252.44,252.31,1.0]
[1737768500340,23.806884,252.42,252.29,1.0]
[1737768501843,23.776884,252.4,252.29,1.0]
[1737768502841,23.776884,252.38,252.29,1.0]
[1737768503145,23.776884,252.38,252.26,1.0]
[1737768503533,23.776884,252.38,252.24,1.0]
[1737768504644,23.776884,252.38,252.23,1.0]
[1737768504834,23.776884,252.4,252.24,1.0]
[1737768505145,23.776884,252.4,252.23,1.0]
[1737768505344,23.776884,252.4,252.25,1.0]
[1737768505540,23.776884,252.4,252.23,1.0]
[1737768507048,0.08627167,252.24,252.23,1.0]
[1737768507250,0.08627167,252.24,252.23,1.39633014]
[1737768508153,0.08116468,252.25,252.24,20.0]
[1737768508326,0.08116468,252.25,252.24,23.9644]
[1737768508526,0.08116468,252.25,252.24,3.9644]
[1737768508728,0.08116468,252.25,252.24,24.9644]
[1737768508931,0.08116468,252.25,252.24,4.9644]
[1737768511528,0.08116468,252.25,252.24,24.9644]
[1737768520380,0.08116468,252.25,252.24,4.9644]
[1737768522363,0.08116468,252.25,252.24,5.0274]
[1737768524196,0.08116468,252.25,252.24,1.063]
[1737768526303,0.08116468,252.25,252.24,21.063]
[1737768526490,0.08116468,252.25,252.24,1.063]
[1737768526992,0.15473549,252.25,252.24,1.063]
[1737768527285,0.07357081,252.25,252.24,1.063]
[1737768533890,0.10357081,252.25,252.24,1.063]
[1737768539172,0.10357081,252.25,252.24,0.063]
[1737768540992,0.10357081,252.25,252.24,1.063]
[1737768544691,0.10357081,252.25,252.24,0.063]
[1737768546194,0.10357081,252.25,252.24,1.063]
[1737768546388,0.10357081,252.25,252.24,11.52302809]
[1737768547196,0.10910288,252.25,252.24,11.52302809]
[1737768547502,0.10910288,252.25,252.24,7.1622]
[1737768553001,0.10910288,252.25,252.24,8.7001]
[1737768560187,0.10910288,252.25,252.24,7.1622]
[1737768560491,0.10910288,252.25,252.24,1.063]
[1737768564297,0.10910288,252.25,252.24,1.4593641]
[1737768566821,0.10910288,252.25,252.24,1.063]
[1737768566992,0.18248815,252.25,252.24,1.063]
[1737768567194,0.10338527,252.25,252.24,1.063]
[1737768567926,23.88026927,252.25,252.24,0.063]
[1737768569122,0.10338527,252.25,252.24,0.063]
[1737768569315,0.10338527,252.25,252.24,1.063]
[1737768570901,0.10338527,252.25,252.24,1.45937714]
[1737768572908,0.10338527,252.25,252.24,1.063]
[1737768574308,0.10338527,252.25,252.24,0.063]
[1737768584941,23.88026927,252.25,252.24,0.063]
[1737768587038,23.9605072,252.25,252.24,0.063]
[1737768587231,23.88712193,252.25,252.24,0.063]
[1737768598654,0.11023793,252.25,252.24,0.063]
[1737768601249,0.11023793,252.25,252.24,1.45943526]
[1737768604247,0.11023793,252.25,252.24,3.07793526]
[1737768604428,0.07537942,252.26,252.25,24.9643]
[1737768607054,0.15586605,252.27,252.26,20.0]
[1737768607234,0.08048921,252.27,252.26,20.39627533]
[1737768607547,0.08048921,252.27,252.26,1.39627533]
[1737768608057,0.08048921,252.27,252.26,21.39627533]
[1737768608747,0.08048921,252.27,252.26,1.39627533]
[1737768609126,0.08048921,252.27,252.24,2.6815]
[1737768609343,0.08048921,252.27,252.24,2.063]
[1737768609549,0.08048921,252.27,252.24,1.063]
[1737768609859,23.85737321,252.27,252.24,0.063]
[1737768610240,0.87328921,252.27,252.24,0.063]
[1737768611624,23.776884,252.26,252.24,0.063]
[1737768612449,24.569684,252.25,252.24,0.063]
[1737768614435,24.599684,252.25,252.24,0.063]
[1737768615129,23.776884,252.24,252.23,0.063]
[1737768615957,0.8228,252.25,252.23,0.063]
[1737768616640,23.776884,252.24,252.12,1.0]
[1737768616959,23.806884,252.25,252.12,1.0]
[1737768616960,23.776884,252.22,252.12,1.0]
[1737768618139,23.776884,252.2,252.12,1.0]
[1737768619761,26.552084,252.22,252.12,1.0]
[1737768620055,23.776884,252.2,252.11,1.0]
[1737768620262,23.776884,252.2,252.11,2.0]
[1737768620558,0.7929,252.22,252.13,2.0]
[1737768621866,0.7928,252.24,252.15,2.0]
[1737768622437,23.776884,252.23,252.15,2.0]
[1737768623545,0.7928,252.24,252.15,2.0]
[1737768623745,0.03,252.25,252.23,1.0]
[1737768623941,0.03,252.25,252.24,0.39641626]
[1737768624152,0.03,252.25,252.24,8.40531626]
[1737768624364,0.08048921,252.27,252.26,1.0]
[1737768624585,0.08048921,252.27,252.26,2.39626657]
[1737768627167,0.07250036,252.27,252.26,2.39626657]
[1737768631170,0.07250036,252.27,252.26,2.0]
[1737768632148,0.0747248,252.28,252.27,3.964]
[1737768632588,0.0747248,252.28,252.27,23.964]
[1737768633483,0.07792146,252.29,252.27,23.964]
[1737768633652,0.07792146,252.29,252.28,2.39615911]
[1737768639069,0.08211884,252.31,252.3,29.9494]
[1737768639377,0.08642017,252.35,252.31,4.6977005]
[1737768639567,0.08642017,252.35,252.32,6.35928654]
[1737768646174,6.367e-05,252.33,252.32,6.35928654]
[1737768646399,2.017e-05,252.35,252.34,20.0]
[1737768646579,2.017e-05,252.35,252.34,20.39601675]
[1737768646784,2.017e-05,252.35,252.34,21.39601675]
[1737768647095,6.213e-05,252.35,252.34,22.39601675]
[1737768647989,9.703e-05,252.37,252.36,20.0]
[1737768648189,0.07520657,252.39,252.38,21.0]
[1737768648402,6.57e-06,252.39,252.38,23.92965451]
[1737768649366,6.57e-06,252.39,252.38,27.89185451]
[1737768650379,6.57e-06,252.39,252.38,30.93185451]
[1737768651696,6.57e-06,252.39,252.38,35.62955501]
[1737768655300,0.7919,252.55,252.39,1.0]
[1737768656300,23.776884,252.6,252.4,3.9619]
[1737768656478,23.776884,252.6,252.52,1.0]
[1737768657697,23.776884,252.6,252.49,1.0]
[1737768657876,23.776884,252.58,252.49,1.0]
[1737768659295,23.776884,252.58,252.47,1.0]
[1737768659481,23.776884,252.58,252.45,1.0]
[1737768659999,23.776884,252.56,252.47,1.0]
[1737768660578,23.776884,252.56,252.49,1.0]
[1737768660781,23.776884,252.56,252.48,1.0]
[1737768662297,23.776884,252.54,252.48,1.0]
[1737768664075,23.776884,252.54,252.5,1.0]
[1737768664507,0.03,252.56,252.52,1.0]
[1737768664806,0.8219,252.56,252.52,2.0]
[1737768667006,0.07197205,252.53,252.52,2.0]
[1737768667908,0.07197205,252.53,252.52,1.0]
[1737768668096,0.07197205,252.53,252.52,2.0]
[1737768668601,0.07197205,252.53,252.47,1.0]
[1737768668992,23.776884,252.51,252.45,2.0]
[1737768669195,23.776884,252.51,252.47,2.0]
[1737768669503,0.792,252.52,252.47,2.0]
[1737768669718,0.792,252.52,252.49,1.0]
[1737768670017,0.07197205,252.53,252.49,1.0]
[1737768670191,23.776884,252.52,252.47,1.0]
[1737768671078,0.07197205,252.53,252.48,1.0]
[1737768671379,23.776884,252.52,252.47,1.0]
[1737768672105,23.776884,252.52,252.49,1.0]
[1737768675100,0.792,252.52,252.48,1.0]
[1737768675301,23.776884,252.51,252.47,1.0]
[1737768675912,23.776884,252.51,252.48,0.063]
[1737768677185,0.792,252.5,252.48,0.063]
[1737768677498,23.776884,252.49,252.48,0.063]
[1737768685903,0.07197205,252.53,252.52,2.0]
[1737768686318,0.07197205,252.53,252.52,2.39584768]
[1737768687014,0.14714474,252.53,252.52,2.39584768]
[1737768687204,0.07517269,252.53,252.52,6.35584768]
[1737768688416,0.07517269,252.53,252.52,2.39584768]
[1737768689720,0.07517269,252.53,252.52,6.35584768]
[1737768700202,0.08200941,252.54,252.52,12.52434768]
[1737768700401,9.41e-06,252.54,252.53,1.0]
[1737768700607,0.08394511,252.56,252.55,21.0]
[1737768700608,6.348e-05,252.56,252.55,21.0]
[1737768700810,6.348e-05,252.56,252.55,21.39571606]
[1737768702626,6.348e-05,252.56,252.55,25.35531606]
[1737768703711,6.348e-05,252.56,252.55,28.39531606]
[1737768706340,6.348e-05,252.56,252.55,25.35531606]
[1737768706530,6.348e-05,252.56,252.55,8.39531606]
[1737768707030,0.07513465,252.56,252.55,8.39531606]
[1737768707235,0.07507117,252.56,252.55,8.39531606]
[1737768708511,0.07507117,252.56,252.55,5.35531606]
[1737768709941,0.07507117,252.56,252.55,25.35531606]
[1737768713735,0.10507117,252.56,252.55,25.35531606]
[1737768714439,0.08612428,252.57,252.56,0.89492883]
[1737768714615,0.08612428,252.57,252.56,1.89492883]
[1737768720143,0.08612428,252.57,252.56,21.89492883]
[1737768720744,0.08612428,252.57,252.56,1.89492883]
[1737768722245,0.08612428,252.57,252.56,21.89492883]
[1737768722944,0.08612428,252.57,252.56,1.89492883]
[1737768726144,0.11612428,252.57,252.56,1.89492883]
[1737768727139,0.10714258,252.57,252.56,1.89492883]
[1737768727519,0.07714258,252.57,252.56,1.89492883]
[1737768727851,0.07714258,252.57,252.56,1.0]
[1737768728647,7.967e-05,252.6,252.59,22.0]
[1737768728982,1.571e-05,252.63,252.62,1.0]
[1737768729158,6.625e-05,252.66,252.65,2.0]
[1737768729323,6.625e-05,252.66,252.65,2.39559792]
[1737768730434,6.625e-05,252.66,252.65,22.39559792]
[1737768730626,6.625e-05,252.66,252.65,2.39559792]
[1737768730931,6.625e-05,252.66,252.65,6.35359792]
[1737768732962,6.625e-05,252.66,252.65,26.35359792]
[1737768733140,1.5932,252.89,252.68,20.0]
[1737768733346,1.5932,252.89,252.8,1.0]
[1737768733654,1.5932,252.89,252.79,2.0]
[1737768733834,1.5932,252.89,252.79,1.0]
[1737768734164,23.776884,252.88,252.79,2.0]
[1737768734327,24.567784,252.88,252.79,2.0]
[1737768735764,24.567784,252.88,252.79,1.0]
[1737768735937,24.567784,252.88,252.79,2.0]
[1737768736138,24.567784,252.88,252.79,1.0]
[1737768736483,24.567784,252.88,252.79,2.0]
[1737768736964,24.567784,252.88,252.79,1.0]
[1737768737135,0.7909,252.88,252.8,1.0]
[1737768737342,0.7909,252.88,252.81,1.0]
[1737768737862,0.7909,252.88,252.8,2.0]
[1737768738749,0.7909,252.86,252.8,2.0]
[1737768739572,0.7909,252.86,252.73,0.39554775]
[1737768739573,23.776884,252.85,252.77,1.0]
[1737768740382,23.776884,252.85,252.76,1.0]
[1737768741579,23.776884,252.83,252.76,1.0]
[1737768742852,23.776884,252.83,252.75,1.0]
[1737768743585,24.567784,252.85,252.75,1.0]
[1737768744092,26.545184,252.85,252.75,1.0]
[1737768744389,26.545184,252.85,252.69,3.9573]
[1737768744390,26.545184,252.85,252.7,1.0]
[1737768744759,26.545184,252.85,252.71,1.0]
[1737768746185,26.545184,252.85,252.7,1.0]
[1737768746884,23.776884,252.83,252.67,2.0]
[1737768747205,0.07935619,252.71,252.67,2.0]
[1737768748069,0.07935619,252.71,252.7,2.0]
[1737768748471,0.07935619,252.71,252.7,2.39560527]
[1737768748705,0.07935619,252.71,252.7,2.0]
[1737768749196,0.07935619,252.71,252.7,5.9572]
[1737768750203,0.07935619,252.71,252.7,12.0007]
[1737768750403,0.07935619,252.71,252.7,12.39625531]
[1737768751300,0.07935619,252.71,252.7,8.43905531]
[1737768755494,0.03264013,252.77,252.7,8.43905531]
[1737768755904,0.03264013,252.77,252.76,1.0]
[1737768756125,23.80952413,252.77,252.72,1.0]
[1737768756419,23.80952413,252.77,252.74,1.0]
[1737768758006,23.80952413,252.77,252.75,1.0]
[1737768758396,0.03264013,252.77,252.76,1.0]
[1737768759877,0.03264013,252.77,252.5,7.439056]
[1737768759878,0.03264013,252.77,252.74,1.0]
[1737768760313,0.03264013,252.77,252.76,1.0]
[1737768760490,0.03264013,252.77,252.74,1.0]
[1737768760812,0.03264013,252.77,252.76,1.0]
[1737768763674,0.07257805,252.78,252.77,0.96735987]
[1737768763873,0.07257805,252.78,252.77,1.96735987]
[1737768766540,23.84946205,252.78,252.77,0.96735987]
[1737768766695,0.07257805,252.78,252.77,0.96735987]
[1737768767082,0.15195999,252.78,252.77,0.96735987]
[1737768767295,0.07938194,252.78,252.77,0.96735987]
[1737768769413,0.07938194,252.78,252.77,1.96735987]
[1737768770836,0.07938194,252.78,252.77,0.96735987]
[1737768771834,0.07938194,252.78,252.77,1.96735987]
[1737768779242,0.07938194,252.78,252.77,0.96735987]
[1737768779243,23.85626594,252.78,252.77,0.96735987]
[1737768780351,0.07938194,252.78,252.77,1.96735987]
[1737768780732,0.07938194,252.78,252.77,0.96735987]
[1737768783027,0.07938194,252.78,252.77,1.96735987]
[1737768783249,0.0764284,252.81,252.77,1.96735987]
[1737768783250,0.08612472,252.87,252.82,9.708]
[1737768783429,0.08612472,252.87,252.84,2.0]
[1737768786535,0.08612472,252.87,252.84,1.0]
[1737768786729,0.08612472,252.87,252.83,1.0]